bitfinex/quotes_ETHUSD_20250517
["timestamp","ask_amount","ask_price","bid_price","bid_amount"]
[1747501436161,4.04949605,2469.5,2469.1,7.954]
[1747501437061,4.04919844,2469.7,2469.2,4.59980914]
[1747501437389,4.04919844,2469.7,2469.3,0.7913]
[1747501438890,4.04937799,2469.6,2469.2,0.55]
[1747501439192,4.04970322,2469.4,2469.2,8.502]
[1747501440259,4.0495091,2469.5,2469.2,8.502]
[1747501440855,0.7717,2469.9,2469.2,8.502]
[1747501441097,4.04935055,2469.6,2469.2,8.502]
[1747501441272,4.04943523,2469.5,2469.2,8.502]
[1747501441470,4.04963095,2469.4,2469.2,8.502]
[1747501442196,8.0,2469.8,2469.3,0.7913]
[1747501442413,8.0,2469.8,2469.4,0.55]
[1747501442713,4.04898091,2469.8,2469.4,0.55]
[1747501443368,7.949,2469.9,2469.4,0.55]
[1747501443693,4.04899967,2469.8,2469.4,0.55]
[1747501443899,4.04899967,2469.8,2469.6,0.55]
[1747501444498,4.05359585,2470.0,2469.6,0.55]
[1747501444663,4.04893365,2469.8,2469.6,0.55]
[1747501445061,4.05368764,2470.0,2469.6,0.55]
[1747501445260,4.05363493,2470.0,2469.8,0.55]
[1747501445582,0.005,2470.0,2469.8,0.55]
[1747501445893,0.005,2470.0,2469.9,0.92923]
[1747501449900,0.005,2470.0,2469.9,7.95]
[1747501450463,4.05358299,2470.0,2469.9,7.95]
[1747501454018,0.005,2470.0,2469.9,7.95]
[1747501454224,4.05358299,2470.0,2469.9,7.95]
[1747501454714,0.005,2470.0,2469.9,7.95]
[1747501455209,4.05358299,2470.0,2469.9,7.95]
[1747501456324,0.005,2470.0,2469.9,7.95]
[1747501459326,4.05358739,2470.0,2469.8,0.55]
[1747501459503,4.05358739,2470.0,2469.9,8.5]
[1747501461533,0.005,2470.0,2469.9,0.55]
[1747501461728,0.005,2470.0,2469.9,8.499]
[1747501461900,0.005,2470.0,2469.9,9.42803]
[1747501463432,0.005,2470.0,2469.9,9.81494528]
[1747501464146,0.005,2470.0,2469.9,14.66959219]
[1747501470586,0.005,2470.0,2469.9,14.72661676]
[1747501470780,0.005,2470.0,2469.9,6.77761676]
[1747501470974,0.005,2470.0,2469.9,18.05286985]
[1747501471181,4.05358299,2470.0,2469.9,0.38691528]
[1747501471378,0.005,2470.0,2469.9,8.32491528]
[1747501471731,0.005,2470.0,2469.9,8.87491528]
[1747501472134,4.05358299,2470.0,2469.9,8.32491528]
[1747501472556,4.05358299,2470.0,2469.9,8.87491528]
[1747501472557,0.005,2470.0,2469.9,8.87491528]
[1747501474164,0.005,2470.0,2469.9,0.93691528]
[1747501474534,4.05358299,2470.0,2469.9,0.93691528]
[1747501474874,0.005,2470.0,2469.9,0.93691528]
[1747501475029,0.005,2470.0,2469.9,2.2293135]
[1747501476019,0.005,2470.0,2469.9,2.71284305]
[1747501477320,0.005,2470.0,2469.9,1.42044483]
[1747501477584,0.005,2470.0,2469.9,9.35844483]
[1747501479126,0.005,2470.0,2469.9,8.87491528]
[1747501479564,0.005,2470.0,2469.9,12.92366219]
[1747501479746,0.005,2470.0,2469.9,8.87491528]
[1747501480358,0.005,2470.0,2469.9,10.29713763]
[1747501480740,0.7956,2470.0,2469.9,0.93691528]
[1747501480938,4.84418299,2470.0,2469.9,0.93691528]
[1747501481161,4.05358299,2470.0,2469.9,0.93691528]
[1747501482676,4.05358299,2470.0,2469.9,0.38691528]
[1747501482968,4.04923874,2469.6,2469.5,8.42152955]
[1747501483141,4.83983874,2469.6,2469.5,8.42152955]
[1747501484145,4.83983874,2469.6,2469.5,0.48352955]
[1747501484336,22.72949104,2469.6,2469.5,0.48352955]
[1747501484853,14.79849104,2469.6,2469.5,0.38739465]
[1747501485055,22.73049104,2469.6,2469.5,0.38739465]
[1747501485980,4.0498947,2469.2,2469.1,0.48352955]
[1747501486144,14.799147,2469.2,2469.1,0.48352955]
[1747501487374,22.738147,2469.2,2469.1,0.48352955]
[1747501487571,24.7069993,2469.2,2469.1,0.48352955]
[1747501487775,22.738147,2469.2,2469.1,0.48352955]
[1747501488072,14.799147,2469.2,2469.1,0.48352955]
[1747501488242,0.7804,2468.4,2467.9,25.422]
[1747501488442,4.05186385,2468.0,2467.9,17.482]
[1747501488839,4.05202804,2467.9,2467.8,7.94]
[1747501489153,4.05257327,2467.6,2467.4,0.48352955]
[1747501489355,4.05225261,2467.8,2467.4,0.48352955]
[1747501489562,0.7772,2467.9,2467.4,0.48352955]
[1747501489563,0.7772,2467.9,2467.6,0.66666667]
[1747501489744,4.05235644,2467.7,2467.6,0.66666667]
[1747501490242,4.0522509,2467.8,2467.7,0.55]
[1747501490443,4.05235644,2467.7,2467.6,0.66666667]
[1747501491270,4.82955644,2467.7,2467.6,0.66666667]
[1747501491842,12.76255644,2467.7,2467.6,0.66666667]
[1747501493001,20.76255644,2467.7,2467.6,0.66666667]
[1747501493148,12.82955644,2467.7,2467.6,0.66666667]
[1747501493481,20.76255644,2467.7,2467.6,0.66666667]
[1747501494683,26.70243906,2467.7,2467.6,0.66666667]
[1747501495863,26.70443906,2467.7,2467.6,0.66666667]
[1747501496190,34.63843906,2467.7,2467.6,0.66666667]
[1747501496358,26.70343906,2467.7,2467.6,0.66666667]
[1747501497357,30.48907501,2467.7,2467.6,0.66666667]
[1747501497780,30.49107501,2467.7,2467.6,0.66666667]
[1747501498359,26.70543906,2467.7,2467.6,0.66666667]
[1747501500061,20.76555644,2467.7,2467.6,0.66666667]
[1747501500793,12.82955644,2467.7,2467.6,0.66666667]
[1747501500969,19.98835644,2467.7,2467.6,0.66666667]
[1747501502084,24.54769239,2467.7,2467.6,0.66666667]
[1747501502390,12.05235644,2467.7,2467.6,0.66666667]
[1747501502597,19.98835644,2467.7,2467.6,0.66666667]
[1747501502906,12.05235644,2467.7,2467.6,0.66666667]
[1747501503460,12.05235644,2467.7,2467.6,1.21666667]
[1747501503658,0.7737,2468.1,2467.7,0.55]
[1747501503867,7.936,2468.2,2467.9,0.55]
[1747501504080,7.936,2468.2,2468.1,0.55]
[1747501504267,4.05101213,2468.6,2468.1,0.55]
[1747501504712,4.05101213,2468.6,2468.1,4.60166076]
[1747501505497,8.52483653,2469.0,2468.1,0.55]
[1747501505681,4.05153553,2468.2,2468.1,8.487]
[1747501505882,4.05153553,2468.2,2468.1,0.55]
[1747501506072,4.05153553,2468.2,2467.6,0.66666667]
[1747501506073,4.8618291,2468.2,2467.7,0.7704]
[1747501506271,4.05219223,2467.8,2467.7,9.2574]
[1747501506865,7.935,2468.2,2467.8,0.55]
[1747501507263,4.05202804,2467.9,2467.8,0.55]
[1747501508572,4.05174176,2468.1,2467.8,0.55]
[1747501508907,4.05169968,2468.1,2468.0,0.55]
[1747501509095,4.05219223,2467.8,2467.7,0.55]
[1747501510927,4.05235644,2467.7,2467.6,8.60366667]
[1747501511101,12.05235644,2467.7,2467.6,8.60366667]
[1747501511401,12.05235644,2467.7,2467.6,0.66666667]
[1747501513592,12.84295644,2467.7,2467.6,0.66666667]
[1747501516724,20.77795644,2467.7,2467.6,0.66666667]
[1747501516912,26.71783906,2467.7,2467.6,0.66666667]
[1747501520784,18.78283906,2467.7,2467.6,0.66666667]
[1747501520984,34.65683906,2467.7,2467.6,0.66666667]
[1747501521185,18.78283906,2467.7,2467.6,0.66666667]
[1747501521799,34.65683906,2467.7,2467.6,0.66666667]
[1747501522016,38.44247501,2467.7,2467.6,0.66666667]
[1747501523427,22.56847501,2467.7,2467.6,0.66666667]
[1747501523722,38.44247501,2467.7,2467.6,0.66666667]
[1747501524721,26.71783906,2467.7,2467.6,0.66666667]
[1747501525024,17.92723906,2467.7,2467.6,0.66666667]
[1747501525226,25.92723906,2467.7,2467.6,0.66666667]
[1747501525621,26.68963906,2467.7,2467.6,0.66666667]
[1747501527299,34.62463906,2467.7,2467.6,0.66666667]
[1747501529124,26.68963906,2467.7,2467.6,0.66666667]
[1747501529316,34.62463906,2467.7,2467.6,0.66666667]
[1747501531623,18.75463906,2467.7,2467.6,0.66666667]
[1747501531812,34.62563906,2467.7,2467.6,0.66666667]
[1747501533913,38.88763906,2467.7,2467.6,0.66666667]
[1747501534427,18.75463906,2467.7,2467.6,0.66666667]
[1747501534610,34.62563906,2467.7,2467.6,0.66666667]
[1747501535618,34.62463906,2467.7,2467.6,0.66666667]
[1747501537537,38.88663906,2467.7,2467.6,0.66666667]
[1747501540102,18.75463906,2467.7,2467.6,0.66666667]
[1747501540308,34.62463906,2467.7,2467.6,0.66666667]
[1747501541418,51.41275606,2467.7,2467.6,0.66666667]
[1747501541612,4.05416362,2466.6,2466.5,0.7878]
[1747501541815,11.98816362,2466.6,2466.5,0.7878]
[1747501542616,11.98816362,2466.6,2466.5,1.3378]
[1747501543145,11.98816362,2466.6,2466.5,0.7878]
[1747501543805,4.05482118,2466.2,2466.1,0.55]
[1747501544006,11.98816362,2466.6,2466.0,17.499]
[1747501544007,4.0549856,2466.1,2466.0,17.499]
[1747501544207,4.05515004,2466.0,2465.9,9.20732955]
[1747501544439,4.05515004,2466.0,2465.9,1.27132955]
[1747501544644,4.05515004,2466.0,2465.9,0.7878]
[1747501544941,7.934,2466.1,2465.9,0.7878]
[1747501545143,7.934,2466.2,2465.9,0.7878]
[1747501545443,4.05506419,2466.1,2466.0,0.55]
[1747501547056,7.934,2466.2,2466.0,0.55]
[1747501547355,4.0549856,2466.1,2466.0,0.55]
[1747501547852,4.0549856,2466.1,2465.9,0.7878]
[1747501547853,4.05515004,2466.0,2465.9,0.7878]
[1747501548228,4.05515004,2466.0,2465.5,0.7878]
[1747501548423,4.05580791,2465.6,2465.5,0.7878]
[1747501548648,7.934,2466.0,2465.7,0.7878]
[1747501548840,7.934,2466.2,2466.0,0.55]
[1747501549261,7.934,2466.2,2466.0,4.84283356]
[1747501549447,7.934,2466.4,2466.1,4.60496189]
[1747501549759,7.934,2466.4,2466.1,0.55]
[1747501550157,4.05449237,2466.4,2466.1,0.55]
[1747501550535,4.05482118,2466.2,2466.1,0.55]
[1747501550865,4.0549856,2466.1,2466.0,1.3378]
[1747501551868,4.0548257,2466.2,2466.0,1.3378]
[1747501552283,4.05558083,2465.8,2465.6,0.7878]
[1747501552784,7.934,2466.0,2465.6,0.7878]
[1747501553058,11.98917643,2466.0,2465.7,0.55]
[1747501553259,11.98915369,2466.0,2465.7,0.55]
[1747501553620,12.05450258,2466.4,2465.7,0.55]
[1747501553621,11.98905925,2466.1,2465.7,0.55]
[1747501554242,4.05488817,2466.2,2465.7,0.55]
[1747501554570,7.934,2466.1,2465.7,0.55]
[1747501555061,4.05522212,2466.0,2465.7,0.55]
[1747501555461,4.05487833,2466.2,2465.7,0.55]
[1747501555635,11.98899385,2466.1,2465.8,0.8255]
[1747501556166,4.05499385,2466.1,2465.8,0.8255]
[1747501556368,4.05515228,2466.0,2465.8,0.8255]
[1747501557267,4.05499986,2466.1,2465.8,0.8255]
[1747501557970,4.05516385,2466.0,2465.8,0.8255]
[1747501558158,4.05503541,2466.1,2465.8,0.8255]
[1747501560939,7.934,2466.4,2466.1,0.55]
[1747501561339,4.05479083,2466.3,2466.1,0.55]
[1747501562188,4.05482118,2466.2,2466.1,0.55]
[1747501563859,7.934,2466.4,2466.1,0.55]
[1747501564062,5.93988262,2466.6,2466.4,4.05441478]
[1747501564357,5.93988262,2466.6,2466.5,1.3401]
[1747501564565,7.934,2467.0,2466.5,1.3401]
[1747501564868,4.05340751,2467.1,2466.5,5.39437964]
[1747501565183,12.05362948,2467.0,2466.7,0.55]
[1747501565341,4.05351837,2467.0,2466.7,0.55]
[1747501565954,12.05351837,2467.0,2466.7,0.55]
[1747501566640,4.05341731,2467.1,2466.7,0.55]
[1747501566846,4.47451351,2467.2,2467.0,0.55]
[1747501567063,4.05301964,2467.3,2467.1,1.3401]
[1747501567265,4.05301964,2467.3,2466.5,0.54349213]
[1747501567266,7.933,2467.4,2466.6,0.7901]
[1747501567470,4.05399927,2466.7,2466.6,1.3401]
[1747501568910,7.933,2466.9,2466.6,1.3401]
[1747501569082,4.05369178,2466.9,2466.6,1.3401]
[1747501569251,4.05399927,2466.7,2466.6,1.3401]
[1747501569658,4.05390617,2466.8,2466.6,1.3401]
[1747501570690,4.05390617,2466.8,2466.6,1.3201]
[1747501570900,4.05390804,2466.8,2466.6,1.3201]
[1747501571562,4.05371639,2466.9,2466.6,1.3201]
[1747501571819,11.98543989,2467.1,2466.7,0.55]
[1747501572083,7.932,2467.1,2466.7,0.55]
[1747501572279,4.05350745,2467.0,2466.7,0.55]
[1747501573386,8.0,2467.1,2466.6,0.7701]
[1747501573561,4.05465614,2466.4,2466.1,8.41652955]
[1747501573769,4.05465614,2466.4,2466.2,0.7606]
[1747501574293,4.05465614,2466.4,2466.3,0.55]
[1747501576500,4.05465614,2466.4,2466.2,0.7606]
[1747501576501,4.05465677,2466.3,2466.2,0.7606]
[1747501577257,4.05488802,2466.2,2466.0,0.55]
[1747501577458,4.0549856,2466.1,2465.8,8.6936]
[1747501577875,4.05515004,2466.0,2465.8,8.6936]
[1747501578396,4.05515004,2466.0,2465.8,0.7606]
[1747501578964,11.9859856,2466.1,2465.8,0.7606]
[1747501578965,7.931,2466.1,2465.8,4.81604761]
[1747501579165,4.05457501,2466.4,2466.1,0.7606]
[1747501579396,4.05411284,2466.7,2466.4,0.55]
[1747501579594,4.05417395,2466.6,2466.4,0.55]
[1747501580464,12.05408954,2466.7,2466.4,0.55]
[1747501580664,7.931,2466.8,2466.4,0.55]
[1747501580995,11.98493201,2466.8,2466.4,0.55]
[1747501581183,11.98493201,2466.8,2466.4,1.6820699]
[1747501581385,11.98493201,2466.8,2466.3,0.55]
[1747501581386,4.05432799,2466.5,2466.3,0.55]
[1747501581689,8.7059,2466.8,2466.3,0.55]
[1747501581690,4.05458694,2466.4,2466.3,0.55]
[1747501582391,11.98521148,2466.6,2466.1,1.3106]
[1747501582392,4.05482118,2466.2,2466.1,1.3106]
[1747501582598,4.05482118,2466.2,2466.1,0.55]
[1747501584302,4.05515004,2466.0,2465.9,0.7606]
[1747501584604,4.05515004,2466.0,2465.9,1.3106]
[1747501584801,4.86509572,2466.4,2465.7,8.7121]
[1747501584802,4.05482118,2466.2,2465.7,8.7121]
[1747501585009,4.05580791,2465.6,2465.5,0.7781]
[1747501585211,12.05569351,2465.7,2465.5,0.7781]
[1747501585372,12.05569351,2465.7,2465.6,0.55]
[1747501585573,7.93,2466.1,2465.6,4.60576549]
[1747501585574,8.0,2466.0,2465.6,4.60576549]
[1747501585773,7.93,2466.0,2465.6,1.1367395]
[1747501585974,8.0,2466.0,2465.6,0.55]
[1747501586175,3.78563595,2466.8,2465.9,0.7781]
[1747501586403,4.05503794,2466.1,2465.9,0.7781]
[1747501586604,4.055093,2466.1,2465.9,0.7781]
[1747501586915,4.05489017,2466.2,2465.9,0.7781]
[1747501587080,7.931,2466.3,2466.0,0.55]
[1747501587275,4.05484068,2466.2,2466.0,0.55]
[1747501588315,0.8106,2466.6,2466.0,0.55]
[1747501588473,4.0548066,2466.3,2466.0,0.55]
[1747501588678,4.05472866,2466.3,2466.0,0.55]
[1747501589094,12.05458272,2466.4,2466.0,0.55]
[1747501589299,4.05469587,2466.3,2466.0,0.55]
[1747501589696,7.931,2466.5,2466.0,4.60510088]
[1747501589897,4.05433341,2466.5,2466.2,0.55]
[1747501590111,8.0,2466.5,2466.2,0.55]
[1747501590309,7.93,2466.7,2466.4,4.6044842]
[1747501590617,7.93,2466.7,2466.4,0.55]
[1747501590790,8.0,2466.7,2466.4,0.55]
[1747501591196,12.05401839,2466.7,2466.4,0.55]
[1747501591415,12.05395154,2466.8,2466.4,0.55]
[1747501592222,4.05401483,2466.7,2466.4,0.55]
[1747501592587,12.05386749,2466.8,2466.4,1.87867299]
[1747501594122,0.8106,2467.1,2466.4,1.87867299]
[1747501594423,4.05301341,2467.3,2466.8,0.55]
[1747501594584,7.93,2467.6,2467.1,0.55]
[1747501594787,4.05296272,2467.4,2467.1,0.55]
[1747501594985,4.52216791,2467.6,2467.2,0.8282]
[1747501595179,4.52216791,2467.6,2467.3,0.55]
[1747501595416,4.05244129,2467.7,2467.3,0.55]
[1747501595621,12.62564596,2467.8,2467.3,0.55]
[1747501595622,4.05252899,2467.6,2467.3,0.55]
[1747501595920,4.05244223,2467.7,2467.3,0.55]
[1747501596089,4.05256694,2467.6,2467.3,0.55]
[1747501596713,11.98119621,2467.8,2467.3,13.07606197]
[1747501596902,11.98119621,2467.8,2467.5,0.55]
[1747501597103,8.0,2467.7,2467.5,0.55]
[1747501597307,7.929,2468.0,2467.5,4.60254009]
[1747501597503,7.929,2468.0,2467.7,0.55]
[1747501597708,11.98060528,2468.2,2467.8,0.8282]
[1747501597905,4.05160528,2468.2,2467.8,0.8282]
[1747501598096,4.05167273,2468.2,2467.9,0.55]
[1747501598403,4.05186385,2468.0,2467.9,0.55]
[1747501601399,8.7563,2468.2,2467.6,0.8139]
[1747501602108,4.05278676,2467.5,2467.1,0.8139]
[1747501602309,4.05280994,2467.5,2467.2,7.928]
[1747501602509,4.05255466,2467.6,2467.3,0.55]
[1747501602697,4.05255466,2467.6,2467.2,7.928]
[1747501602698,4.05254395,2467.6,2467.2,7.928]
[1747501603028,4.05254395,2467.6,2467.2,9.61286373]
[1747501603236,11.97819864,2467.8,2467.3,4.86689867]
[1747501603437,4.05240187,2467.7,2467.4,0.55]
[1747501603934,11.97832972,2467.8,2467.4,0.55]
[1747501604735,4.05277812,2467.5,2467.3,0.8139]
[1747501605231,4.05235644,2467.7,2467.2,0.55]
[1747501605232,8.7563,2467.7,2467.2,0.55]
[1747501605537,4.0531373,2467.3,2467.2,0.55]
[1747501605898,8.0,2467.5,2467.2,0.55]
[1747501606309,8.0,2467.5,2467.2,4.6031279]
[1747501606610,8.0,2467.5,2467.2,0.55]
[1747501606826,12.05269957,2467.5,2467.2,0.55]
[1747501607017,4.05301341,2467.3,2467.2,0.55]
[1747501607217,4.05317769,2467.2,2467.1,0.8139]
[1747501607418,7.925,2467.3,2467.0,7.927]
[1747501607728,4.05321101,2467.2,2467.0,7.927]
[1747501607929,11.97803441,2467.3,2467.0,7.927]
[1747501608109,11.978062,2467.3,2467.0,8.477]
[1747501608430,4.05326351,2467.2,2467.0,8.477]
[1747501608637,4.05334198,2467.1,2467.0,0.55]
[1747501609718,8.0,2467.2,2467.0,0.55]
[1747501610023,12.05318988,2467.2,2467.0,0.55]
[1747501610934,15.925,2467.3,2467.2,1.3692]
[1747501611299,8.0,2467.3,2467.2,1.3692]
[1747501612829,12.05301341,2467.3,2467.2,1.3692]
[1747501613037,8.0,2467.3,2467.2,1.3692]
[1747501613603,12.05301341,2467.3,2467.2,1.3692]
[1747501614538,8.0,2467.3,2467.2,1.3692]
[1747501614700,11.9765415,2467.6,2467.3,0.55]
[1747501614906,7.924,2467.6,2467.3,0.55]
[1747501615238,7.924,2467.6,2467.3,4.6030067]
[1747501615435,11.97660858,2467.6,2467.3,0.55]
[1747501615741,4.05269132,2467.5,2467.3,0.55]
[1747501616154,4.05301341,2467.3,2467.1,0.55]
[1747501616943,7.923,2467.4,2467.1,4.60323606]
[1747501617122,7.923,2467.4,2467.3,0.55]
[1747501618144,11.97584915,2467.4,2467.3,0.55]
[1747501619008,4.05284915,2467.4,2467.3,0.55]
[1747501619539,4.05284915,2467.4,2467.0,0.7821]
[1747501619743,4.05316716,2467.3,2467.0,0.7821]
[1747501620445,8.0,2467.7,2467.0,0.7821]
[1747501620446,5.93988262,2467.9,2467.1,0.55]
[1747501620662,8.0,2467.5,2467.3,0.55]
[1747501620872,11.97546294,2467.7,2467.3,0.55]
[1747501621172,7.923,2467.6,2467.4,0.7525]
[1747501621338,19.97537319,2467.7,2467.4,0.7525]
[1747501621541,5.93988262,2467.9,2467.5,4.60262336]
[1747501621734,5.93988262,2467.9,2467.6,4.0524034]
[1747501621935,7.923,2468.1,2467.5,0.55]
[1747501622130,4.05120673,2468.5,2467.9,4.6019681]
[1747501622354,4.05129364,2468.4,2467.9,4.60194444]
[1747501622559,4.05129364,2468.4,2467.9,0.55]
[1747501622560,4.05138082,2468.3,2467.9,0.55]
[1747501622762,11.97328868,2468.4,2467.9,4.60191395]
[1747501622931,4.05140217,2468.3,2467.9,9.07847346]
[1747501623132,4.05137138,2468.3,2467.9,9.07847346]
[1747501623333,4.05153717,2468.2,2467.9,8.473]
[1747501623652,4.05162899,2468.2,2467.9,8.473]
[1747501624387,4.05146046,2468.3,2467.9,8.473]
[1747501624547,11.97346046,2468.3,2467.9,8.473]
[1747501624747,4.05146046,2468.3,2467.9,8.473]
[1747501624943,8.0,2468.3,2467.9,12.52499113]
[1747501625144,4.05115609,2468.5,2468.1,4.60167304]
[1747501625345,11.9732274,2468.4,2468.1,0.55]
[1747501625655,4.05137396,2468.3,2468.1,0.55]
[1747501625859,4.05153553,2468.2,2468.1,0.55]
[1747501626264,4.05153553,2468.2,2467.6,4.05245794]
[1747501626265,8.8068,2468.3,2467.5,0.7525]
[1747501626467,4.05244395,2467.7,2467.5,0.7525]
[1747501626773,11.97327062,2467.8,2467.5,0.7525]
[1747501627176,7.921,2467.8,2467.6,0.55]
[1747501627359,7.921,2467.8,2467.5,0.7525]
[1747501627762,7.92,2468.1,2467.4,7.923]
[1747501627971,11.97171016,2468.1,2467.8,0.55]
[1747501628170,7.92,2468.1,2467.8,0.55]
[1747501628794,11.97174977,2468.1,2467.8,0.55]
[1747501629393,4.05188887,2468.0,2467.8,0.55]
[1747501630697,4.05188887,2468.0,2467.5,5.25019554]
[1747501630698,4.05188887,2468.0,2467.6,7.923]
[1747501630907,4.05188887,2468.0,2467.7,0.55]
[1747501631110,4.05176876,2468.1,2467.7,0.55]
[1747501631381,4.05158489,2468.2,2467.9,0.55]
[1747501631382,11.97163008,2468.2,2467.9,0.55]
[1747501631561,4.05175163,2468.1,2467.9,0.55]
[1747501632483,11.97163008,2468.2,2467.9,0.55]
[1747501632484,7.92,2468.2,2467.9,0.55]
[1747501634058,8.0,2468.5,2468.0,0.8194]
[1747501634248,8.0,2468.5,2468.1,0.55]
[1747501634958,8.7777,2468.8,2468.1,0.55]
[1747501635306,0.7777,2468.8,2468.4,0.55]
[1747501635467,15.918,2468.9,2468.5,4.05096646]
[1747501635869,7.918,2468.9,2468.6,4.60078849]
[1747501636202,11.96841137,2468.9,2468.6,1.3694]
[1747501636555,4.05058589,2468.8,2468.6,1.3694]
[1747501636888,11.96846032,2468.9,2468.6,1.3694]
[1747501638296,4.05058291,2468.8,2468.6,1.3694]
[1747501639699,12.05044605,2468.9,2468.6,1.3694]
[1747501639871,19.96744605,2468.9,2468.6,1.3694]
[1747501640071,15.917,2468.9,2468.6,1.3694]
[1747501640271,4.0505819,2468.8,2468.6,1.3694]
[1747501641099,4.05071495,2468.7,2468.6,1.3694]
[1747501641613,4.05177692,2468.1,2467.9,7.92991721]
[1747501641889,4.05186385,2468.0,2467.9,7.92991721]
[1747501642053,12.05186385,2468.0,2467.9,0.00991721]
[1747501642254,12.80276385,2468.0,2467.9,0.00991721]
[1747501642609,20.71876385,2468.0,2467.9,0.00991721]
[1747501644454,12.80276385,2468.0,2467.9,0.00991721]
[1747501644660,8.0,2468.0,2467.9,0.00991721]
[1747501644986,4.0516333,2468.2,2467.9,0.00991721]
[1747501645295,7.83641076,2468.7,2467.9,0.00991721]
[1747501645296,0.8106,2468.5,2467.9,0.00991721]
[1747501645516,11.96734481,2468.4,2468.0,0.8073]
[1747501645655,12.05137138,2468.3,2468.0,0.8073]
[1747501646088,4.05169968,2468.1,2468.0,0.55]
[1747501646287,4.05169968,2468.1,2467.9,0.00991721]
[1747501646288,4.05186385,2468.0,2467.9,0.00991721]
[1747501646490,11.9672381,2468.4,2467.9,0.00991721]
[1747501646491,12.05137138,2468.3,2467.9,0.00991721]
[1747501646720,8.0,2468.3,2467.9,0.00991721]
[1747501647400,7.915,2468.2,2467.9,4.06193287]
[1747501647610,0.8106,2468.7,2468.0,0.55]
[1747501647931,7.915,2468.3,2468.2,0.55]
[1747501648099,7.915,2468.6,2468.3,4.0512684]
[1747501648414,11.96564202,2468.8,2468.4,0.55]
[1747501648576,4.05073557,2468.7,2468.4,0.55]
[1747501648911,4.05088927,2468.6,2468.3,0.55]
[1747501649428,4.05186385,2468.0,2467.9,0.00991721]
[1747501649582,11.96675134,2468.1,2467.9,0.00991721]
[1747501649765,7.915,2468.1,2467.9,0.00991721]
[1747501650416,12.05186385,2468.0,2467.9,0.00991721]
[1747501650903,8.0,2468.0,2467.9,0.00991721]
[1747501651966,12.05186385,2468.0,2467.9,0.00991721]
[1747501652765,4.05112188,2468.5,2468.0,4.84844222]
[1747501653012,6.72258262,2468.6,2468.1,0.55]
[1747501653318,5.93988262,2468.6,2468.1,8.50651538]
[1747501653602,8.0,2468.7,2468.4,0.55]
[1747501653968,12.0507354,2468.7,2468.3,0.55]
[1747501654163,4.0507354,2468.7,2468.3,0.55]
[1747501654389,11.96558753,2468.8,2468.3,1.80174622]
[1747501654707,8.0,2468.7,2468.5,0.55]
[1747501654914,12.05083245,2468.7,2468.5,0.55]
[1747501655119,8.0,2468.7,2468.5,0.55]
[1747501656307,12.05073228,2468.7,2468.5,0.55]
[1747501656704,8.0,2468.7,2468.5,0.55]
[1747501656870,7.915,2468.8,2468.5,0.55]
[1747501657415,4.05055087,2468.8,2468.5,0.55]
[1747501657713,4.05072872,2468.7,2468.5,0.55]
[1747501658006,4.05072872,2468.7,2468.4,0.7966]
[1747501658007,4.05120725,2468.4,2468.0,0.7966]
[1747501658207,4.05133516,2468.4,2468.0,0.7966]
[1747501658430,11.96533516,2468.4,2468.1,0.55]
[1747501658927,7.914,2468.4,2468.1,0.55]
[1747501659231,7.914,2468.4,2468.0,0.7966]
[1747501659391,4.05186385,2468.0,2467.9,0.00991721]
[1747501659591,12.05186385,2468.0,2467.9,0.00991721]
[1747501660717,8.0,2468.0,2467.9,0.00991721]
[1747501660887,11.96460738,2468.2,2467.9,0.7966]
[1747501661093,7.913,2468.2,2467.9,0.55]
[1747501661312,4.05194436,2468.0,2467.9,0.55]
[1747501661530,12.05178733,2468.1,2467.9,0.55]
[1747501661886,4.05186385,2468.0,2467.9,0.55]
[1747501662127,12.05178155,2468.1,2467.9,0.55]
[1747501662326,8.0,2468.1,2467.9,0.55]
[1747501662625,4.05186385,2468.0,2467.9,0.55]
[1747501663113,12.05179657,2468.1,2467.9,0.55]
[1747501663514,4.05186385,2468.0,2467.9,0.55]
[1747501663820,4.05210966,2467.9,2467.6,8.7126]
[1747501664027,4.05210966,2467.9,2467.7,0.55]
[1747501664426,8.0,2468.2,2467.7,0.55]
[1747501664642,7.913,2468.0,2467.7,4.60227173]
[1747501664944,8.0,2468.2,2467.8,4.60216612]
[1747501665112,15.914,2468.2,2467.8,4.60207275]
[1747501665495,0.8106,2468.7,2467.8,0.55]
[1747501665833,12.05126081,2468.4,2468.0,0.55]
[1747501666039,12.05113108,2468.5,2468.0,4.60181213]
[1747501666238,4.05078522,2468.7,2468.2,0.55]
[1747501666537,4.05078522,2468.7,2468.4,1.3742]
[1747501666538,7.914,2468.6,2468.4,1.3742]
[1747501666701,7.914,2468.8,2468.5,4.05091207]
[1747501666908,7.913,2468.8,2468.6,0.55]
[1747501667525,7.913,2468.9,2468.6,0.55]
[1747501667730,11.96339315,2468.9,2468.6,0.55]
[1747501668205,11.96339315,2468.9,2468.5,4.05096895]
[1747501668206,7.913,2468.9,2468.5,0.55]
[1747501668407,4.05072849,2468.7,2468.5,0.55]
[1747501670210,4.05116063,2468.5,2468.2,8.465]
[1747501670402,4.05097324,2468.6,2468.2,8.465]
[1747501670799,4.05097324,2468.6,2468.2,0.55]
[1747501671943,4.05081166,2468.7,2468.2,6.33577666]
[1747501672239,8.0,2468.7,2468.5,0.55]
[1747501672643,4.05009625,2469.1,2468.5,0.55]
[1747501672851,7.912,2468.9,2468.7,0.55]
[1747501673147,7.912,2468.9,2468.6,0.55]
[1747501673508,7.912,2469.0,2468.7,0.55]
[1747501674414,11.96222406,2469.0,2468.7,0.55]
[1747501674709,7.912,2469.0,2468.7,0.55]
[1747501675024,7.912,2469.0,2468.7,4.60070201]